bitfinex/quotes_SOLUSD_20260119
["timestamp","ask_amount","ask_price","bid_price","bid_amount"]
[1768865709776,0.48258708,133.79,133.75,3.00406601]
[1768865710193,0.48258708,133.78,133.75,3.00406601]
[1768865710392,0.42258709,133.78,133.75,3.00406601]
[1768865711954,0.42258709,133.78,133.74,7.85118799]
[1768865711955,7.47501118,133.78,133.74,3.00406601]
[1768865712378,0.48258708,133.77,133.74,3.00406601]
[1768865712677,0.44357891,133.77,133.74,3.00406601]
[1768865713177,0.44357891,133.77,133.73,10.91570078]
[1768865713357,0.44357891,133.77,133.73,3.43814277]
[1768865713973,7.47576184,133.77,133.72,3.47715094]
[1768865714153,7.47576184,133.77,133.72,10.95528231]
[1768865714353,7.47576184,133.77,133.73,3.00406601]
[1768865714657,0.48258708,133.76,133.73,3.00406601]
[1768865715670,0.48258708,133.76,133.72,7.9512163]
[1768865715982,0.48258708,133.76,133.73,3.00406601]
[1768865718875,0.48258708,133.76,133.72,7.9512163]
[1768865719183,0.48258708,133.76,133.73,3.00406601]
[1768865720477,7.95870123,133.76,133.72,3.47715094]
[1768865721085,0.48258708,133.76,133.73,3.00406601]
[1768865722180,7.4761042,133.76,133.71,7.47849264]
[1768865722362,0.48258708,133.75,133.71,10.95564358]
[1768865723083,0.48258708,133.75,133.72,3.47715094]
[1768865723380,0.45741339,133.76,133.72,3.47715094]
[1768865723962,0.3974134,133.76,133.72,3.47715094]
[1768865724369,7.87358977,133.76,133.72,0.47308493]
[1768865724581,7.87358977,133.76,133.72,3.47715094]
[1768865724864,7.87358977,133.76,133.72,0.47308493]
[1768865725190,7.47617637,133.76,133.72,3.47715094]
[1768865725561,7.47573459,133.77,133.72,10.95528217]
[1768865725762,7.47440017,133.79,133.73,3.4875961]
[1768865725986,0.45741339,133.78,133.73,3.4875961]
[1768865726682,0.45741339,133.77,133.74,0.48353009]
[1768865726993,0.45741339,133.79,133.76,3.00406601]
[1768865727156,0.45741339,133.8,133.77,3.00406601]
[1768865729689,0.45741339,133.8,133.76,7.95953209]
[1768865729981,0.45741339,133.79,133.75,7.9599298]
[1768865730184,0.45741339,133.8,133.77,3.4875961]
[1768865731369,0.45741339,133.8,133.77,0.48353009]
[1768865731576,0.45741339,133.8,133.77,3.4875961]
[1768865731775,0.45741339,133.8,133.77,3.00406601]
[1768865731973,0.45741339,133.8,133.76,7.95932021]
[1768865732180,0.45741339,133.8,133.77,3.00406601]
[1768865732377,7.9313656,133.8,133.76,0.48353009]
[1768865732690,0.45741339,133.78,133.74,3.00406601]
[1768865734588,0.45741339,133.77,133.74,3.00406601]
[1768865734999,7.93252809,133.78,133.74,3.4875961]
[1768865735291,0.45741339,133.78,133.75,3.4875961]
[1768865736182,0.45741339,133.78,133.75,0.48353009]
[1768865736487,0.45741339,133.78,133.75,3.00406601]
[1768865736787,0.45741339,133.77,133.73,10.48159515]
[1768865737164,0.45741339,133.77,133.73,7.47752914]
[1768865737703,3.00406601,133.77,133.72,7.96163487]
[1768865737869,0.45741339,133.76,133.72,10.48217079]
[1768865738068,0.3974134,133.76,133.72,7.96168408]
[1768865738268,0.3974134,133.76,133.72,10.96575009]
[1768865738768,10.48028126,133.76,133.71,7.47839838]
[1768865738967,10.48028126,133.76,133.71,10.48246439]
[1768865739263,7.47621525,133.76,133.71,10.96599448]
[1768865739463,7.47621525,133.76,133.72,3.00406601]
[1768865739667,7.47578889,133.77,133.72,10.48236056]
[1768865739985,0.45741339,133.76,133.72,10.48236056]
[1768865740367,0.45741339,133.76,133.72,7.47829455]
[1768865740684,0.45741339,133.75,133.71,7.96218094]
[1768865740890,0.45741339,133.75,133.71,10.96901935]
[1768865741388,0.45741339,133.75,133.71,3.4903685]
[1768865744392,0.45870868,133.77,133.72,3.48386397]
[1768865744695,0.45870868,133.76,133.71,7.95580164]
[1768865744865,0.45870868,133.76,133.72,3.00683841]
[1768865745267,0.45870868,133.76,133.71,10.96264005]
[1768865746388,0.45870868,133.76,133.73,3.00683841]
[1768865746598,0.45870868,133.76,133.72,3.48386397]
[1768865746768,0.45870868,133.76,133.72,0.47702556]
[1768865746769,0.45870868,133.75,133.72,0.47702556]
[1768865746970,0.45870868,133.75,133.71,10.96264005]
[1768865747366,0.45870868,133.75,133.71,0.47702556]
[1768865747570,0.45870868,133.75,133.71,3.48386397]
[1768865747871,7.47676489,133.75,133.71,0.47702556]
[1768865748069,0.45870868,133.74,133.71,3.48386397]
[1768865748485,0.45870868,133.74,133.71,0.47702556]
[1768865748690,0.39870869,133.74,133.71,3.48386397]
[1768865751293,0.35951773,133.74,133.71,3.48386397]
[1768865751475,0.35951773,133.74,133.7,7.67917662]
[1768865751476,0.35951773,133.74,133.7,8.15620218]
[1768865751666,0.35951773,133.74,133.7,11.16304059]
[1768865752872,0.35951773,133.74,133.71,0.47702556]
[1768865754007,0.35951773,133.74,133.71,3.48386397]
[1768865754313,0.29951774,133.74,133.71,3.48386397]
[1768865754476,0.23951775,133.74,133.71,3.48386397]
[1768865754677,0.23951775,133.74,133.71,0.47702556]
[1768865757496,0.49926321,133.73,133.7,3.69898594]
[1768865757679,0.49926321,133.73,133.7,11.17841556]
[1768865758080,0.43926322,133.73,133.7,3.69898594]
[1768865760975,0.43926322,133.73,133.7,0.69214753]
[1768865762491,0.43926322,133.73,133.7,0.2]
[1768865763702,0.43926322,133.73,133.7,11.17841562]
[1768865763914,18.69085595,133.76,133.71,3.49898594]
[1768865763915,0.49926321,133.74,133.71,3.49898594]
[1768865764197,0.49926321,133.75,133.72,0.49214753]
[1768865765317,0.49926321,133.75,133.72,3.49898594]
[1768865765615,0.49926321,133.79,133.75,0.49214753]
[1768865765818,0.49926321,133.79,133.77,3.00683841]
[1768865766124,0.49926321,133.8,133.77,3.49898594]
[1768865766281,0.49926321,133.81,133.78,3.49898594]
[1768865766487,0.49926321,133.81,133.79,3.00683841]
[1768865767901,0.49926321,133.81,133.78,3.49898594]
[1768865770005,7.97264902,133.81,133.78,0.49214753]
[1768865770207,7.97264902,133.81,133.77,3.49898594]
[1768865771806,0.49926321,133.81,133.78,3.49898594]
[1768865772113,0.49926321,133.82,133.78,3.49898594]
[1768865772812,7.97219424,133.82,133.78,3.49898594]
[1768865773414,7.97219424,133.82,133.78,0.49214753]
[1768865773711,0.49926321,133.81,133.78,3.49898594]
[1768865774909,7.97254852,133.81,133.78,3.00683841]
[1768865775327,0.49926321,133.81,133.78,3.49898594]
[1768865775515,7.97262495,133.81,133.78,3.49898594]
[1768865775994,0.49926321,133.81,133.78,3.49898594]
[1768865776194,7.47295727,133.82,133.79,3.49898594]
[1768865776195,0.49926321,133.82,133.79,3.49898594]
[1768865777115,7.97205851,133.82,133.78,0.49214753]
[1768865777307,7.97205851,133.82,133.79,3.00683841]
[1768865777802,7.97205851,133.82,133.78,0.49214753]
[1768865778006,7.97205851,133.82,133.79,3.00683841]
[1768865779018,0.49926321,133.82,133.79,3.00683841]
[1768865779517,7.97201079,133.82,133.79,3.00683841]
[1768865779815,0.49926321,133.81,133.78,3.49898594]
[1768865781922,0.49926321,133.81,133.78,0.49214753]
[1768865782218,0.49926321,133.81,133.78,3.49898594]
[1768865786422,0.49926321,133.81,133.78,10.9736471]
[1768865786625,0.49926321,133.81,133.79,3.00683841]
[1768865788101,0.49172822,133.82,133.79,3.48732685]
[1768865788314,0.49172822,133.82,133.79,10.9615548]
[1768865788709,0.49172822,133.84,133.81,3.48732685]
[1768865789425,0.49172822,133.83,133.81,3.00683841]
[1768865791626,0.49172822,133.83,133.8,3.48732685]
[1768865792722,7.96391154,133.83,133.8,0.48048844]
[1768865793030,0.49172822,133.83,133.8,3.48732685]
[1768865794527,0.49172822,133.82,133.79,0.48048844]
[1768865794751,0.49172822,133.82,133.8,3.00683841]
[1768865795028,0.49172822,133.82,133.78,10.96201016]
[1768865795523,0.49172822,133.82,133.78,10.48152172]
[1768865795837,0.49172822,133.82,133.79,0.48048844]
[1768865796920,0.49172822,133.82,133.79,3.48732685]
[1768865799131,0.49172822,133.82,133.8,3.00683841]
[1768865799436,7.4722651,133.83,133.8,3.48732685]
[1768865799437,0.49172822,133.83,133.8,3.48732685]
[1768865801612,0.45397854,133.82,133.79,0.4848073]
[1768865801813,0.45397854,133.82,133.79,3.49164571]
[1768865802039,0.45397854,133.83,133.8,3.49164571]
[1768865803017,0.45397854,133.83,133.8,0.4848073]
[1768865803319,0.45397854,133.83,133.8,3.48779699]
[1768865803833,0.45397854,133.82,133.79,3.00298969]
[1768865804536,0.45397854,133.82,133.79,3.48779699]
[1768865806839,0.45397854,133.81,133.76,64.98779699]
[1768865807143,0.45397854,133.8,133.76,61.9848073]
[1768865807350,0.45397854,133.8,133.76,0.4848073]
[1768865808020,0.45397854,133.79,133.76,0.4848073]
[1768865811069,7.92838378,133.79,133.76,0.4848073]
[1768865811351,0.45397854,133.78,133.75,3.48779699]
[1768865812251,0.45397854,133.78,133.75,0.4848073]
[1768865814261,0.45397854,133.78,133.75,3.48779699]
[1768865819047,0.45397854,133.78,133.75,0.4848073]
[1768865819239,0.46098164,133.77,133.74,3.46428237]
[1768865823163,0.46098164,133.78,133.76,3.00298969]
[1768865823347,0.46098164,133.78,133.75,3.46428237]
[1768865824441,0.46098164,133.78,133.74,3.46428237]
[1768865824679,0.46098164,133.77,133.74,3.46428237]
[1768865825053,0.46098164,133.77,133.74,10.94133763]
[1768865825256,0.40098165,133.77,133.74,10.94133763]
[1768865825454,0.40098165,133.77,133.74,3.46428237]
[1768865825972,7.47461708,133.79,133.75,3.46428237]
[1768865826748,26.15888196,133.8,133.75,3.46428237]
[1768865827358,0.46098164,133.79,133.75,3.46428237]
[1768865827772,0.46098164,133.78,133.74,3.46428237]
[1768865828673,0.46098164,133.76,133.74,0.46129268]
[1768865828863,0.46098164,133.76,133.73,3.46428237]
[1768865830376,0.46098164,133.76,133.74,0.46129268]
[1768865830556,0.46098164,133.76,133.74,3.46428237]
[1768865830759,0.40098165,133.76,133.74,3.46428237]
[1768865831169,0.40098165,133.76,133.74,0.46129268]
[1768865831475,0.40098165,133.76,133.74,3.46428237]
[1768865832871,0.40098165,133.76,133.72,10.94243184]
[1768865833067,0.40098165,133.76,133.73,0.46129268]
[1768865833582,7.87706451,133.76,133.73,0.46129268]
[1768865835887,0.46098164,133.75,133.72,3.46428237]
[1768865836085,0.46098164,133.75,133.71,7.93990556]
[1768865836259,0.46098164,133.75,133.71,0.46129268]
[1768865836590,0.46098164,133.74,133.7,3.66428237]
[1768865837387,0.46098164,133.74,133.7,0.66129268]
[1768865837587,0.40098165,133.73,133.7,0.2]
[1768865837886,0.40098165,133.73,133.7,0.66129268]
[1768865838192,0.40098165,133.73,133.7,3.66428237]
[1768865838576,0.40098165,133.73,133.7,0.66129268]
[1768865839072,7.87874093,133.73,133.7,0.66129268]
[1768865839275,7.47775928,133.73,133.7,0.2]
[1768865839465,0.46098164,133.73,133.7,0.2]
[1768865839807,0.46098164,133.73,133.7,0.66129268]
[1768865840389,7.93878211,133.73,133.7,0.66129268]
[1768865841974,0.46098164,133.73,133.7,0.66129268]
[1768865842381,7.93883663,133.73,133.7,0.66129268]
[1768865843686,0.45616897,133.72,133.7,0.66129268]
[1768865843985,0.39616898,133.72,133.7,0.66129268]
[1768865844293,7.47785499,133.73,133.7,0.66129268]
[1768865845891,26.170716,133.74,133.7,0.66129268]
[1768865846100,0.45616897,133.73,133.7,0.66129268]
[1768865846890,7.47719455,133.74,133.71,0.47058666]
[1768865847066,7.93336352,133.74,133.71,0.47058666]
[1768865847476,0.45616897,133.73,133.7,0.2]
[1768865847774,0.45616897,133.73,133.7,0.67058666]
[1768865850694,7.93397274,133.73,133.7,0.67058666]
[1768865853099,0.45616897,133.72,133.7,0.67058666]
[1768865854003,0.45616897,133.72,133.7,0.2]
[1768865854376,7.93459371,133.72,133.7,0.2]
[1768865855793,0.45616897,133.71,133.7,0.2]
[1768865856103,0.45616897,133.71,133.7,1e-08]
[1768865856104,7.87504116,133.71,133.7,1e-08]
[1768865857402,7.81504117,133.71,133.7,1e-08]
[1768865858202,16.38,133.75,133.7,0.47058667]
[1768865858398,103.0207987,133.77,133.74,0.47058666]
[1768865858577,7.47570636,133.77,133.74,0.47058666]
[1768865859382,3.00298969,133.79,133.73,3.47357635]
[1768865859383,7.9325907,133.76,133.73,3.47357635]
[1768865859800,7.9325907,133.76,133.73,0.47058666]
[1768865860504,7.93195442,133.77,133.73,3.47357635]
[1768865860705,7.93195442,133.77,133.74,3.00298969]
[1768865861000,7.93195442,133.77,133.74,3.47357635]
[1768865862998,0.46055413,133.79,133.76,0.46449074]
[1768865863311,0.46055413,133.79,133.76,3.46748043]
[1768865863809,7.93462011,133.8,133.77,3.46748043]
[1768865864105,7.93462011,133.8,133.76,3.46748043]
[1768865864911,7.93462011,133.8,133.76,3.46921519]
[1768865865293,0.46055413,133.79,133.75,0.46449074]
[1768865865490,0.46055413,133.79,133.75,3.46921519]
[1768865866010,0.46055413,133.79,133.76,0.46449074]
[1768865866211,0.46055413,133.79,133.76,3.46921519]
[1768865866891,7.93503156,133.79,133.76,3.46921519]
[1768865867097,7.93503156,133.79,133.76,3.43921519]
[1768865867398,7.93503156,133.79,133.76,0.43449074]
[1768865872618,7.93503156,133.79,133.76,0.40449074]
[1768865873893,0.49345303,133.78,133.76,0.40449074]
[1768865874620,7.96793046,133.79,133.76,0.40449074]
[1768865875635,0.49345303,133.77,133.72,0.48531378]
[1768865875913,0.49345303,133.77,133.73,0.48531378]
[1768865876618,0.49345303,133.76,133.73,0.48531378]
[1768865877117,0.49345303,133.76,133.73,3.49003823]
[1768865878506,0.49345303,133.76,133.73,0.48531378]
[1768865879004,0.49345303,133.76,133.73,3.49003823]
[1768865879517,0.49345303,133.76,133.73,0.48531378]
[1768865879824,7.96954933,133.76,133.73,0.48531378]
[1768865880312,0.49345303,133.75,133.71,0.48531378]
[1768865881300,7.97028262,133.75,133.71,0.48531378]
[1768865882009,7.47682959,133.75,133.71,0.48531378]
[1768865882318,0.49345303,133.74,133.71,0.48531378]
[1768865883322,0.49345303,133.73,133.7,1e-08]
[1768865884305,7.47803707,133.73,133.7,1e-08]
[1768865884620,0.49345303,133.72,133.7,1e-08]
[1768865885600,0.49345303,133.71,133.7,1e-08]
[1768865886920,7.97232521,133.71,133.7,1e-08]
[1768865887127,0.49345303,133.71,133.7,1e-08]
[1768865887908,7.47887218,133.71,133.7,1e-08]
[1768865888406,0.49345303,133.71,133.7,1e-08]
[1768865889322,7.47887218,133.71,133.7,1e-08]
[1768865889835,7.97232521,133.71,133.7,1e-08]
[1768865891835,16.38,133.75,133.7,1e-08]
[1768865891836,0.49345303,133.74,133.7,0.48531379]
[1768865893422,7.97161213,133.73,133.7,0.45531379]
[1768865894006,7.97087401,133.74,133.7,3.00472445]
[1768865895113,7.97087401,133.74,133.69,7.47998096]
[1768865895311,7.97087401,133.74,133.69,10.48470541]
[1768865895517,7.97087401,133.74,133.7,0.48531378]
[1768865896030,0.49345303,133.72,133.69,0.48531378]
[1768865896411,0.49345303,133.71,133.68,0.68531378]
[1768865896619,3.49817748,133.72,133.69,0.48531378]
[1768865897313,7.97200983,133.72,133.69,0.48531378]
[1768865899131,16.87345303,133.75,133.71,0.48531378]
[1768865899513,0.49345303,133.74,133.71,0.48531378]
[1768865900614,7.97092211,133.74,133.71,0.48531378]
[1768865907144,0.46306434,133.73,133.7,0.48300018]
[1768865907637,7.94053342,133.74,133.7,0.48300018]
[1768865908234,10.94525787,133.74,133.7,0.48300018]
[1768865908431,0.46306434,133.73,133.7,0.48300018]
[1768865908734,0.46306434,133.72,133.69,0.48300018]
[1768865909343,0.46306434,133.73,133.69,0.48300018]
[1768865910230,7.94102803,133.73,133.69,0.48300018]
[1768865911042,7.47796369,133.73,133.7,0.48300018]
[1768865911416,7.94102803,133.73,133.7,0.48300018]
[1768865922959,3.00472445,133.72,133.69,0.4999537]
[1768865923155,7.94657357,133.71,133.68,0.6999537]
[1768865924658,0.46749267,133.7,133.68,0.2]
[1768865924865,0.46749267,133.69,133.68,0.2]
[1768865925043,0.40749268,133.69,133.68,0.2]
[1768865925558,7.47987143,133.7,133.68,0.2]
[1768865926449,10.48459588,133.7,133.68,0.2]
[1768865926837,10.48981009,133.7,133.68,0.2]
[1768865927043,10.95730276,133.7,133.68,0.2]
[1768865928460,0.46749267,133.69,133.68,0.2]
[1768865928663,0.46749267,133.68,133.64,0.6999537]
[1768865928872,3.47743133,133.68,133.64,0.6999537]
[1768865929160,7.9473641,133.7,133.66,0.4999537]
[1768865931248,7.9473641,133.7,133.67,0.4999537]
[1768865931466,0.46749267,133.73,133.7,0.4999537]
[1768865931645,7.94550053,133.73,133.7,0.4999537]
[1768865932153,0.46749267,133.72,133.69,0.4999537]
[1768865932465,0.46749267,133.72,133.67,0.4999537]
[1768865932767,0.46749267,133.72,133.68,0.4999537]
[1768865933349,7.94622357,133.72,133.68,3.50989236]
[1768865933543,7.94622357,133.72,133.69,0.465199]
[1768865940177,0.47256668,133.69,133.64,0.2]
[1768865940470,3.48250534,133.66,133.63,0.465199]
[1768865940676,0.47256668,133.66,133.63,0.465199]
[1768865940858,0.47256668,133.67,133.63,0.465199]
[1768865942172,7.4816699,133.66,133.63,3.47513766]
[1768865942355,7.4816699,133.66,133.64,0.465199]
[1768865943162,7.48111019,133.67,133.64,0.465199]
[1768865943363,0.47256668,133.69,133.65,3.47513766]
[1768865943562,19.17214195,133.7,133.66,0.465199]
[1768865944555,7.48021211,133.69,133.67,0.465199]
[1768865944754,7.47968656,133.7,133.67,0.465199]
[1768865945457,0.47256668,133.73,133.68,0.465199]
[1768865945870,3.48250534,133.73,133.68,0.465199]
[1768865946376,7.95111561,133.72,133.68,0.465199]
[1768865947581,0.47256668,133.7,133.66,0.465199]
[1768865949061,7.9522841,133.7,133.66,0.465199]
[1768865949471,7.47971742,133.7,133.66,0.465199]
[1768865953979,7.9522841,133.7,133.66,0.465199]
[1768865971311,7.9522841,133.7,133.62,78.08]
[1768865971312,0.46827568,133.66,133.62,0.2]
[1768865971494,3.47821434,133.64,133.62,0.2]
[1768865972415,3.47821434,133.64,133.61,0.49718299]
[1768865972599,7.48334954,133.63,133.61,0.49718299]
[1768865982738,10.4932882,133.63,133.61,0.49718299]
[1768865983544,7.48334954,133.63,133.61,0.49718299]
[1768865985145,7.93688269,133.63,133.6,0.2]
[1768865985340,10.94682135,133.63,133.6,0.65100399]
[1768865986548,7.93688269,133.63,133.6,0.2]
[1768865986848,7.93688269,133.63,133.61,0.45100399]
[1768865991860,7.48334954,133.63,133.61,0.45100399]
[1768865992361,10.49618,133.63,133.61,0.45100399]
[1768865997248,26.67499035,133.67,133.61,7.93516526]
[1768865997565,3.50393513,133.65,133.62,0.47609988]
[1768865998356,0.49110467,133.63,133.61,0.47609988]
[1768865999347,7.9744579,133.63,133.61,0.47609988]
[1768865999762,7.48335323,133.63,133.61,0.47609988]
[1768866000058,7.9744579,133.63,133.61,0.47609988]
[1768866000269,10.98728836,133.63,133.6,0.67609988]
[1768866000458,0.49110467,133.61,133.6,0.2]
[1768866000661,3.01283046,133.62,133.6,0.2]
[1768866001145,29.20455755,133.63,133.6,0.2]
[1768866001351,10.49618369,133.63,133.6,0.67609988]
[1768866002460,3.01283046,133.64,133.61,0.47609988]
[1768866002668,3.50393513,133.64,133.61,0.47609988]
[1768866003467,7.97432755,133.64,133.61,0.47609988]
[1768866009779,10.98715801,133.64,133.61,0.47609988]
[1768866011175,0.49110467,133.63,133.6,0.67609988]
[1768866011357,0.49110467,133.63,133.61,0.47609988]
[1768866011559,10.98715801,133.64,133.61,0.47609988]
[1768866012076,3.01283046,133.62,133.6,0.2]
[1768866012256,3.50393513,133.62,133.6,0.2]
[1768866012461,3.50393513,133.63,133.6,0.67609988]
[1768866013165,7.97501315,133.63,133.6,0.67609988]
[1768866014582,10.98784361,133.63,133.6,0.67609988]
[1768866016380,29.2051128,133.63,133.6,0.67609988]
[1768866016588,0.49110467,133.62,133.6,0.2]
[1768866016883,0.49110467,133.61,133.59,0.67609988]
[1768866017087,3.50393513,133.62,133.59,0.67609988]
[1768866018285,0.49110467,133.62,133.59,0.67609988]
[1768866019095,7.48446972,133.61,133.59,0.67609988]
[1768866022196,3.50393513,133.64,133.6,0.47609988]
[1768866022383,0.49110467,133.63,133.6,0.47609988]
[1768866022692,3.50393513,133.62,133.59,0.67609988]
[1768866023791,10.49720905,133.62,133.59,0.2]
[1768866023976,0.4611865,133.61,133.59,0.2]
[1768866024899,0.4611865,133.61,133.59,0.68519327]
[1768866025279,10.49720905,133.62,133.59,0.68519327]
[1768866025478,10.95839555,133.62,133.59,0.68519327]
[1768866028098,7.94556509,133.62,133.59,0.68519327]
[1768866028304,10.95839555,133.62,133.59,0.68519327]
[1768866028915,7.94556509,133.62,133.59,0.68519327]
[1768866029904,7.94556509,133.62,133.59,0.2]
[1768866030200,7.48363233,133.63,133.6,0.48519327]
[1768866030704,10.95696331,133.64,133.6,0.48519327]
[1768866032200,7.94413285,133.64,133.6,0.48519327]
[1768866035285,10.95696331,133.64,133.6,0.48519327]
[1768866037009,7.94413285,133.64,133.6,0.48519327]
[1768866037206,10.95696331,133.64,133.6,0.48519327]
[1768866038204,0.4611865,133.63,133.6,0.48519327]
[1768866038506,10.95696331,133.64,133.6,0.48519327]
[1768866043019,7.48294635,133.64,133.6,0.48519327]
[1768866043919,7.94050678,133.64,133.6,0.48519327]
[1768866049216,99.01485318,133.66,133.62,0.46325709]
[1768866049422,0.45756043,133.66,133.62,0.46325709]
[1768866050513,7.93952919,133.66,133.62,0.46325709]
[1768866052604,0.45756043,133.65,133.62,0.46325709]
[1768866056221,22.17240884,133.67,133.62,0.46325709]
[1768866056607,0.45668386,133.66,133.62,0.46325709]
[1768866061527,0.45668386,133.67,133.62,7.48380338]
[1768866061728,0.45668386,133.7,133.65,0.47937291]
[1768866062026,0.45668386,133.7,133.62,23.88380338]
[1768866062027,0.45668386,133.7,133.67,0.47937291]
[1768866062524,3.46888427,133.7,133.67,0.47937291]
[1768866062737,0.45668386,133.7,133.67,0.47937291]
[1768866062920,0.45668386,133.72,133.68,0.47937291]
[1768866063106,18.69267531,133.75,133.69,0.47937291]
[1768866063107,0.45668386,133.73,133.69,0.47937291]
[1768866063618,7.93469523,133.73,133.7,0.47937291]
[1768866064533,0.45668386,133.72,133.69,0.47937291]
[1768866064731,0.45668386,133.7,133.64,0.47937291]
[1768866065032,16.4,133.72,133.64,7.96210557]
[1768866065033,0.45668386,133.68,133.64,7.96210557]
[1768866065333,0.45668386,133.68,133.65,0.47937291]
[1768866065717,7.93724754,133.68,133.65,0.47937291]
[1768866065928,10.94944795,133.68,133.65,0.47937291]
[1768866066217,7.93724754,133.68,133.65,0.47937291]
[1768866067635,0.45668386,133.68,133.65,0.47937291]
[1768866067942,7.93724446,133.68,133.65,0.47937291]
[1768866068638,0.45668386,133.68,133.65,0.47937291]
[1768866068836,0.45668386,133.69,133.66,0.47937291]
[1768866074946,7.93669188,133.69,133.66,0.47937291]
[1768866075244,10.94889229,133.69,133.66,0.47937291]
[1768866079154,7.93669188,133.69,133.66,0.47937291]
[1768866079453,0.45668386,133.72,133.68,0.47937291]
[1768866079624,0.45668386,133.72,133.68,0.44937291]
[1768866080654,0.45668386,133.71,133.68,0.44937291]
[1768866082358,7.93582879,133.71,133.68,0.44937291]
[1768866088964,0.48222624,133.7,133.67,0.46253083]
[1768866090544,7.96206102,133.7,133.67,0.46253083]
[1768866099885,7.47983478,133.7,133.68,0.46253083]
[1768866100553,7.47908584,133.71,133.69,0.46253083]
[1768866100755,7.47859105,133.72,133.69,0.46253083]
[1768866100965,7.96081729,133.72,133.69,0.46253083]
[1768866101185,7.96009918,133.73,133.7,0.46253083]
[1768866101680,7.95761593,133.74,133.71,0.45110499]
[1768866101880,7.95699413,133.75,133.72,0.45110499]
[1768866103387,0.48017558,133.74,133.7,0.45110499]
[1768866103563,0.48017558,133.74,133.71,0.45110499]
[1768866104356,7.95745645,133.74,133.71,0.45110499]
[1768866108681,0.48017558,133.73,133.68,0.45110499]
[1768866108983,0.48017558,133.72,133.68,0.45110499]
[1768866110755,7.95872594,133.72,133.68,0.45110499]
[1768866112683,0.48017558,133.71,133.68,0.45110499]
[1768866112867,0.48017558,133.71,133.67,0.45110499]
[1768866113267,0.48017558,133.71,133.68,0.46512404]
[1768866114862,0.4951457,133.7,133.67,0.46512404]
[1768866116284,7.97484012,133.7,133.67,0.46512404]
[1768866117495,0.4951457,133.7,133.67,0.46512404]
[1768866118091,7.97460291,133.7,133.67,0.46512404]
[1768866119393,16.8751457,133.73,133.69,0.46512404]
[1768866119697,0.4951457,133.74,133.71,0.46512404]
[1768866119895,0.4951457,133.74,133.71,3.47373269]
[1768866120205,0.4951457,133.75,133.72,0.46512404]
[1768866120501,0.4951457,133.73,133.68,0.46512404]
[1768866120676,0.4951457,133.73,133.69,0.46512404]
[1768866121481,7.97289938,133.73,133.69,0.46512404]
[1768866121887,7.97289938,133.73,133.69,3.00860865]
[1768866122097,7.97289938,133.73,133.7,0.46512404]
[1768866124774,0.4951457,133.72,133.69,0.46512404]
[1768866125691,0.4951457,133.71,133.68,0.46512404]
[1768866125885,0.4951457,133.71,133.67,0.46512404]
[1768866126084,0.4951457,133.71,133.67,7.94615858]
[1768866126279,0.4951457,133.71,133.67,10.48964319]
[1768866126584,0.4951457,133.71,133.68,0.46512404]
[1768866130104,7.97404131,133.71,133.68,0.46512404]
[1768866130301,0.4951457,133.7,133.66,3.00860865]
[1768866130598,0.4951457,133.7,133.67,0.46512404]
[1768866138000,7.97404131,133.71,133.67,0.46512404]
[1768866138382,0.4951457,133.7,133.67,0.46512404]
[1768866141917,7.97465644,133.7,133.67,0.46512404]
[1768866150703,0.49357444,133.71,133.68,0.46097576]
[1768866151200,7.97244662,133.71,133.68,0.46097576]
[1768866151807,7.47887218,133.71,133.68,0.46097576]
[1768866152304,7.97244662,133.71,133.68,0.46097576]
[1768866153219,26.66821413,133.72,133.68,0.46097576]
[1768866153601,26.66821413,133.72,133.68,3.46958441]
[1768866153900,26.66821413,133.72,133.69,0.46097576]
[1768866154709,7.97188733,133.72,133.69,0.46097576]
[1768866159714,7.47831289,133.72,133.69,0.46097576]
[1768866159910,7.97188733,133.72,133.69,0.46097576]
[1768866161921,7.47831289,133.72,133.69,0.46097576]
[1768866162129,0.47911057,133.71,133.69,0.46097576]
[1768866166030,7.47831289,133.72,133.69,0.46097576]
[1768866166209,7.95742346,133.72,133.69,0.46097576]
[1768866168331,0.47911057,133.72,133.69,0.46097576]
[1768866168636,103.50221777,133.73,133.7,0.45586121]
[1768866168830,7.95660336,133.74,133.71,3.00860865]
[1768866169133,0.57911057,133.77,133.73,3.00860865]
[1768866169324,0.47911057,133.75,133.71,3.00860865]
[1768866169532,0.47911057,133.75,133.7,3.00860865]
[1768866170540,7.95630512,133.74,133.7,3.00860865]
[1768866170722,7.95630512,133.74,133.71,0.45586121]
[1768866184749,0.49225359,133.73,133.71,0.45586121]
[1768866184954,7.96944814,133.74,133.71,0.45586121]
[1768866189658,0.49225359,133.74,133.71,0.45586121]
[1768866190057,0.49225359,133.74,133.72,0.45121742]
[1768866190248,7.96916986,133.75,133.72,0.45121742]
[1768866191349,0.49225359,133.74,133.72,0.45121742]
[1768866191539,0.49225359,133.74,133.71,3.45861296]
[1768866191741,0.49225359,133.74,133.71,0.45121742]
[1768866195362,7.96945381,133.74,133.71,0.45121742]
[1768866195861,0.49225359,133.74,133.71,0.45121742]
[1768866196167,7.96945182,133.74,133.71,0.45121742]
[1768866199676,0.49225359,133.73,133.71,0.45121742]